bitfinex-derivatives/quotes_ETHF0:USTF0_20250518
["timestamp","ask_amount","ask_price","bid_price","bid_amount"]
[1747537985329,4.54922094,2478.6,2478.5,12.25047]
[1747537985637,4.54922094,2478.6,2478.5,20.48247]
[1747537986039,1.34015747,2478.6,2478.5,20.48247]
[1747537986235,1.34015747,2478.6,2478.5,23.54047]
[1747537987938,1.34015747,2478.6,2478.5,6.2658]
[1747537988135,1.34015747,2478.6,2478.5,3.058]
[1747537988540,3.01515747,2478.6,2478.5,3.86467]
[1747537989938,1.675,2478.6,2478.5,3.86467]
[1747537990536,1.675,2478.6,2478.5,5.64777]
[1747537991945,0.80654,2478.9,2478.7,0.80659]
[1747537992243,1.6708,2478.8,2478.7,0.80659]
[1747537995939,0.80652,2479.0,2478.6,3.058]
[1747537995940,3.2078,2479.2,2478.6,3.058]
[1747537996146,1.6905,2479.0,2478.9,0.80654]
[1747537996544,3.2078,2479.2,2478.7,3.3519]
[1747537997045,0.80653,2479.0,2478.9,0.80653]
[1747537997246,0.8065,2479.1,2478.9,0.80653]
[1747537997445,0.80651,2479.0,2478.9,0.80653]
[1747537997648,1.7568,2479.1,2479.0,0.80651]
[1747537998140,1.7568,2479.1,2479.0,3.86451]
[1747537998542,2.56328,2479.1,2479.0,3.058]
[1747537998942,2.78211733,2479.1,2479.0,3.058]
[1747537999144,2.78211982,2479.1,2479.0,3.058]
[1747537999343,0.80653,2479.0,2478.9,0.80653]
[1747537999548,1.7568,2479.0,2478.9,0.80653]
[1747538000248,1.7568,2479.0,2478.9,3.86453]
[1747538002749,1.6482,2479.3,2479.2,0.80645]
[1747538002946,2.67368612,2479.3,2479.2,0.80645]
[1747538003146,0.80645,2479.2,2479.1,0.80646]
[1747538003346,1.02552612,2479.2,2479.1,2.57868673]
[1747538003546,2.45463,2479.3,2479.1,3.38513673]
[1747538003748,1.6695,2479.2,2479.1,3.38513673]
[1747538004145,1.6695,2479.2,2479.1,0.80645]
[1747538004552,1.6695,2479.2,2479.1,2.56905]
[1747538006459,1.6695,2479.2,2479.1,10.79705]
[1747538007964,2.47595,2479.2,2479.1,10.79705]
[1747538008466,1.6695,2479.2,2479.1,10.79705]
[1747538009267,4.18377252,2479.4,2479.1,10.79705]
[1747538009268,2.39767252,2479.4,2479.3,0.80641]
[1747538009662,5.21031684,2479.4,2479.3,0.80641]
[1747538009858,0.80641,2479.3,2479.2,8.227]
[1747538010064,2.59371,2479.3,2479.2,8.227]
[1747538010262,2.59371,2479.3,2479.2,9.03345]
[1747538010462,2.59371,2479.3,2479.2,8.227]
[1747538011558,2.59371,2479.3,2479.2,9.03345]
[1747538011965,2.81277866,2479.3,2479.2,9.03345]
[1747538012165,2.59371,2479.3,2479.2,9.03345]
[1747538012369,2.81277831,2479.3,2479.2,9.03345]
[1747538012672,2.8129185,2479.3,2479.2,9.03345]
[1747538012870,2.59371,2479.3,2479.2,9.03345]
[1747538013167,2.81291458,2479.3,2479.2,9.03345]
[1747538013469,2.59371,2479.3,2479.2,9.03345]
[1747538013970,2.81310718,2479.3,2479.2,9.03345]
[1747538014165,2.59371,2479.3,2479.2,9.03345]
[1747538014472,2.8131072,2479.3,2479.2,9.03345]
[1747538014674,5.21094433,2479.3,2479.2,9.03345]
[1747538014969,5.21094434,2479.3,2479.2,9.03345]
[1747538015170,4.40453453,2479.3,2479.2,9.03345]
[1747538015364,5.21094286,2479.3,2479.2,9.12563003]
[1747538015563,5.21093714,2479.3,2479.2,9.12563003]
[1747538015764,5.21092824,2479.3,2479.2,9.12563003]
[1747538015971,5.21093067,2479.3,2479.2,9.12563003]
[1747538016267,5.210931,2479.3,2479.2,9.12563003]
[1747538016471,5.21093103,2479.3,2479.2,9.12563003]
[1747538016670,5.33949566,2479.3,2479.2,9.12563003]
[1747538016879,5.33944554,2479.3,2479.2,9.12563003]
[1747538017078,5.33944292,2479.3,2479.2,9.12563003]
[1747538017280,2.94177017,2479.3,2479.2,9.12563003]
[1747538017474,2.9417659,2479.3,2479.2,9.12563003]
[1747538017675,2.13535575,2479.3,2479.2,9.12563003]
[1747538017878,2.13535681,2479.3,2479.2,10.96353003]
[1747538018077,2.13535634,2479.3,2479.2,10.96353003]
[1747538018278,1.91586463,2479.3,2479.2,10.96353003]
[1747538020492,2.72227463,2479.3,2479.2,10.96353003]
[1747538021389,1.91586463,2479.3,2479.2,10.96353003]
[1747538023489,2.72227463,2479.3,2479.2,2.73653003]
[1747538023791,1.91586463,2479.3,2479.2,2.73653003]
[1747538024690,2.72227463,2479.3,2479.2,2.73653003]
[1747538025690,1.91586463,2479.3,2479.2,2.73653003]
[1747538027286,2.72227463,2479.3,2479.2,0.89863003]
[1747538027493,1.91586463,2479.3,2479.2,0.89863003]
[1747538028294,2.72227463,2479.3,2479.2,0.89863003]
[1747538030095,2.72227463,2479.3,2479.2,0.09218003]
[1747538031997,0.80654,2478.9,2478.8,8.227]
[1747538032196,3.2078,2479.1,2478.8,0.80656]
[1747538032401,6.8206,2479.1,2478.9,0.80654]
[1747538032598,3.20807978,2479.0,2478.9,0.80654]
[1747538032786,5.05817978,2479.0,2478.9,0.80654]
[1747538033197,5.05817978,2479.0,2478.9,3.86454]
[1747538033395,5.86471978,2479.0,2478.9,3.86454]
[1747538033795,5.99328441,2479.0,2478.9,3.86454]
[1747538034199,5.99328441,2479.0,2478.9,0.80654]
[1747538035199,2.78520463,2479.0,2478.9,0.80654]
[1747538036294,0.80654,2478.9,2478.8,0.80655]
[1747538036496,2.56424,2478.9,2478.8,0.80655]
[1747538038102,1.7577,2478.9,2478.8,0.80655]
[1747538038500,0.12856463,2479.0,2478.9,0.80654]
[1747538039201,0.12856463,2479.0,2478.9,3.86454]
[1747538039500,2.76027463,2479.0,2478.9,3.86454]
[1747538040102,2.76027463,2479.0,2478.8,0.80656]
[1747538040298,0.80654,2478.9,2478.8,0.80656]
[1747538040498,0.80658,2478.8,2478.6,3.86461]
[1747538040704,1.8106,2478.7,2478.6,3.86461]
[1747538040899,2.61721,2478.7,2478.6,3.058]
[1747538041201,0.80664,2478.6,2478.5,10.87897]
[1747538041405,2.61724,2478.6,2478.5,10.87897]
[1747538042307,1.8106,2478.6,2478.5,13.93697]
[1747538042500,4.9626,2478.8,2478.7,0.80661]
[1747538042707,3.2078,2478.8,2478.7,0.80661]
[1747538043405,3.34136339,2478.9,2478.8,0.80658]
[1747538044205,4.14790339,2478.9,2478.8,3.86458]
[1747538046705,2.80720463,2478.9,2478.8,3.86458]
[1747538047105,2.80720463,2478.9,2478.8,2.57871952]
[1747538047308,2.80720463,2478.9,2478.8,3.38529952]
[1747538047708,2.00066463,2478.9,2478.8,3.38529952]
[1747538048308,0.12856463,2478.9,2478.8,3.38529952]
[1747538054012,0.12856463,2478.9,2478.8,5.25059952]
[1747538054415,1.7297839,2478.9,2478.8,5.25059952]
[1747538056017,1.7297839,2478.9,2478.8,6.97669952]
[1747538057018,1.7297839,2478.9,2478.8,10.18449952]
[1747538057614,0.40098639,2479.0,2478.9,0.80654]
[1747538057816,0.40098639,2479.0,2478.9,15.74964]
[1747538058009,0.40098639,2479.0,2478.9,28.56779298]
[1747538058213,0.40098639,2479.0,2478.9,31.62579298]
[1747538059722,0.40098639,2479.0,2478.9,30.81925298]
[1747538059918,1.33944085,2479.1,2478.9,30.81925298]
[1747538060117,1.33944085,2479.1,2479.0,0.80651]
[1747538060317,1.33944085,2479.1,2479.0,19.04331]
[1747538061119,1.33944085,2479.1,2479.0,22.10131]
[1747538061920,1.33944085,2479.1,2479.0,11.275]
[1747538062120,4.46586,2479.2,2479.0,12.08151]
[1747538062324,0.80648,2479.1,2479.0,11.275]
[1747538062526,2.62558,2479.1,2479.0,11.275]
[1747538063529,2.62558,2479.1,2479.0,3.058]
[1747538064228,0.80651,2479.0,2478.9,9.10270003]
[1747538064429,4.31601,2479.0,2478.9,9.10270003]
[1747538065131,1.66658655,2479.3,2478.9,16.35418003]
[1747538065425,1.66658655,2479.3,2479.2,4.01425]
[1747538065642,1.66658655,2479.3,2479.2,20.42125]
[1747538066240,1.66658655,2479.3,2479.2,22.17485]
[1747538067947,1.66658655,2479.3,2479.2,5.76785]
[1747538068147,1.66658655,2479.3,2479.2,22.17185]
[1747538069749,1.7589,2479.4,2479.3,0.80641]
[1747538069939,1.7589,2479.4,2479.3,2.51161]
[1747538070140,1.7589,2479.4,2479.3,7.40671]
[1747538072653,9.9667,2479.4,2478.9,3.29998003]
[1747538072845,3.77519707,2479.3,2478.9,11.50298003]
[1747538073040,1.7861,2479.2,2478.9,11.50298003]
[1747538073241,1.7861,2479.2,2479.1,0.80646]
[1747538073447,2.00440784,2479.2,2479.1,0.80646]
[1747538073747,1.7861,2479.2,2479.1,0.80646]
[1747538075154,1.7861,2479.2,2479.1,0.89864003]
[1747538075547,2.59255,2479.2,2479.1,0.09218003]
[1747538076147,3.5965748,2479.2,2479.1,0.09218003]
[1747538076346,3.5965748,2479.2,2479.1,0.89866003]
[1747538076654,3.5965748,2479.2,2479.1,0.09218003]
[1747538077859,8.5965748,2479.2,2479.1,0.09218003]
[1747538078346,3.8150518,2479.2,2479.1,0.09218003]
[1747538078550,3.5965748,2479.2,2479.1,0.09218003]
[1747538078850,3.81505435,2479.2,2479.1,0.09218003]
[1747538079052,3.5965748,2479.2,2479.1,0.09218003]
[1747538079252,4.03353313,2479.2,2479.1,0.09218003]
[1747538079453,8.81505375,2479.2,2479.1,0.09218003]
[1747538079850,9.03361824,2479.2,2479.1,0.09218003]
[1747538080151,0.80651,2479.0,2478.9,0.80654]
[1747538080859,0.80657,2478.9,2478.8,0.80656]
[1747538081156,0.80659,2478.8,2478.7,0.80658]
[1747538081351,1.7678,2478.8,2478.7,0.80658]
[1747538081553,2.57438,2478.8,2478.7,0.80658]
[1747538081751,3.5171,2478.8,2478.7,0.80658]
[1747538082056,4.32368,2478.8,2478.7,0.80658]
[1747538082461,3.5171,2478.8,2478.7,0.80658]
[1747538083264,1.7493,2478.8,2478.7,0.80658]
[1747538083463,1.7493,2478.8,2478.7,2.57938]
[1747538084964,1.19986253,2478.9,2478.8,0.80658]
[1747538085158,1.19986253,2478.9,2478.8,7.37558]
[1747538086262,1.19986253,2478.9,2478.8,9.26138]
[1747538087160,3.95031722,2479.0,2478.9,0.80654]
[1747538088061,3.95031722,2479.0,2478.9,2.65194]
[1747538088265,3.95031722,2479.0,2478.9,5.70994]
[1747538089267,3.95031722,2479.0,2478.9,5.80212003]
[1747538089460,2.94656253,2479.0,2478.9,4.5164664]
[1747538089961,2.94656253,2479.0,2478.9,5.3230064]
[1747538090766,3.07512779,2479.0,2478.9,5.3230064]
[1747538091462,3.07512779,2479.0,2478.9,3.95672003]
[1747538091859,1.87526526,2479.0,2478.9,3.95672003]
[1747538092458,2.87901995,2479.0,2478.9,3.95672003]
[1747538092764,3.90420709,2479.0,2478.9,3.15018003]
[1747538092969,3.09769709,2479.0,2478.9,3.95672003]
[1747538094367,4.69772331,2479.0,2478.9,3.95672003]
[1747538095167,4.69777411,2479.0,2478.9,3.95672003]
[1747538096167,4.47904617,2479.0,2478.9,3.95672003]
[1747538096766,4.69781811,2479.0,2478.9,3.95672003]
[1747538097070,5.50432811,2479.0,2478.9,0.09218003]
[1747538097260,7.36722811,2479.0,2478.9,0.09218003]
[1747538099065,5.30744617,2479.0,2478.9,0.89872003]
[1747538099269,2.73234617,2479.0,2478.9,4.10652003]
[1747538099668,2.73234617,2479.0,2478.9,5.84082003]
[1747538099860,2.73234617,2479.0,2478.9,7.62072003]
[1747538100271,2.73234617,2479.0,2478.9,10.67872003]
[1747538100672,2.33410503,2479.0,2478.9,10.67872003]
[1747538101365,2.33410503,2479.0,2478.9,27.06372003]
[1747538102371,1.33035034,2479.0,2478.9,27.06372003]
[1747538103672,0.12856526,2479.0,2478.9,27.06372003]
[1747538104665,0.12856526,2479.0,2478.9,17.09282003]
[1747538104867,4.12883512,2479.0,2478.9,14.55198003]
[1747538105065,4.93534512,2479.0,2478.9,6.35798003]
[1747538105265,4.93534512,2479.0,2478.9,3.29998003]
[1747538105869,4.93534512,2479.0,2478.9,0.09218003]
[1747538106664,8.00813544,2479.0,2478.9,0.09218003]
[1747538108271,7.20162544,2479.0,2478.9,0.89872003]
[1747538109071,8.00813544,2479.0,2478.9,0.89872003]
[1747538109776,4.80664986,2479.0,2478.9,0.89872003]
[1747538111081,4.80664986,2479.0,2478.9,0.09218003]
[1747538111378,0.80664,2478.6,2478.5,11.4018]
[1747538111580,1.02534353,2478.6,2478.5,11.4018]
[1747538111769,1.02531826,2478.6,2478.5,11.4018]
[1747538112972,4.62691826,2478.6,2478.5,11.4018]
[1747538113178,4.62691826,2478.6,2478.5,14.4598]
[1747538113372,7.02870755,2478.6,2478.5,11.252]
[1747538113573,7.02867905,2478.6,2478.5,11.252]
[1747538113872,12.02867905,2478.6,2478.5,3.058]
[1747538114182,0.80671,2478.4,2478.3,8.194]
[1747538114478,1.02535976,2478.4,2478.3,8.194]
[1747538115181,1.02535976,2478.4,2478.3,11.252]
[1747538115480,1.025213,2478.4,2478.3,11.252]
[1747538115673,1.025213,2478.4,2478.3,3.058]
[1747538116072,2.916513,2478.4,2478.3,3.058]
[1747538116277,0.80684,2478.0,2477.9,8.195]
[1747538116686,0.80684,2478.0,2477.9,9.00187]
[1747538116867,0.80684,2478.0,2477.9,8.195]
[1747538117178,0.80684,2478.0,2477.9,11.253]
[1747538117779,0.80684,2478.0,2477.9,12.05987]
[1747538118282,5.4993,2478.2,2478.1,0.8068]
[1747538118283,6.3061,2478.2,2478.1,0.8068]
[1747538118580,6.3061,2478.2,2478.0,0.80681]
[1747538118581,0.80681,2478.1,2478.0,0.80681]
[1747538118782,2.69811,2478.1,2478.0,0.80681]
[1747538119282,2.69811,2478.1,2478.0,3.86481]
[1747538119781,2.69811,2478.1,2478.0,3.95699003]
[1747538119984,2.69811,2478.1,2478.0,3.15018003]
[1747538120186,4.51320442,2478.1,2478.0,0.09218003]
[1747538120784,4.5131519,2478.1,2478.0,0.09218003]
[1747538120977,9.5131519,2478.1,2478.0,0.09218003]
[1747538121283,0.80687,2477.9,2477.8,2.52822757]
[1747538122070,0.80687,2477.9,2477.8,6.39312757]
[1747538122682,2.00436215,2477.9,2477.8,6.39312757]
[1747538122881,2.00436215,2477.9,2477.8,5.58622757]
[1747538123075,3.76556215,2477.9,2477.8,5.58622757]
[1747538123378,2.95869215,2477.9,2477.8,6.39312757]
[1747538123679,3.76556215,2477.9,2477.8,6.39312757]
[1747538123878,3.76556215,2477.9,2477.8,3.8649]
[1747538124181,0.80697,2477.6,2477.5,12.54538]
[1747538124975,0.80697,2477.6,2477.5,11.7384]
[1747538125170,0.80697,2477.6,2477.5,15.6034]
[1747538125385,0.80697,2477.6,2477.5,14.7964]
[1747538125577,2.67157,2477.6,2477.5,14.7964]
[1747538125776,2.67157,2477.6,2477.5,15.6034]
[1747538126180,2.96259215,2477.8,2477.5,16.61]
[1747538126377,4.82719215,2477.8,2477.5,16.61]
[1747538126573,0.80697,2477.6,2477.5,17.41698]
[1747538126981,2.67157,2477.6,2477.5,17.41698]
[1747538128190,1.8646,2477.6,2477.5,17.41698]
[1747538128491,2.67157,2477.6,2477.5,17.41698]
[1747538128782,0.80697,2477.6,2477.5,22.41698]
[1747538128979,1.86545279,2477.7,2477.6,0.80697]
[1747538129183,1.86545279,2477.7,2477.6,8.99097]
[1747538129385,1.5969998,2477.8,2477.7,0.80693]
[1747538129581,0.31227256,2477.8,2477.7,5.90323]
[1747538129882,0.31227256,2477.8,2477.7,15.33762846]
[1747538130082,1.00194096,2477.9,2477.8,0.8069]
[1747538130283,2.3954997,2478.0,2477.9,0.80687]
[1747538130585,2.3954997,2478.0,2477.9,8.99387]
[1747538130784,2.3954997,2478.0,2477.9,15.88237]
[1747538130992,2.3954997,2478.0,2477.9,15.40278146]
[1747538131191,2.3954997,2478.0,2477.9,18.46078146]
[1747538131690,1.33720886,2478.2,2478.1,0.8068]
[1747538131889,1.33720886,2478.2,2478.1,12.1986]
[1747538132492,1.33720886,2478.2,2478.1,10.7911]
[1747538132788,1.33720886,2478.2,2478.1,13.9989]
[1747538133590,1.33720886,2478.2,2478.1,17.6439]
[1747538134084,3.2078,2478.5,2478.4,0.80671]
[1747538135189,3.2078,2478.5,2478.4,3.86471]
[1747538135887,2.59341,2478.7,2478.5,0.80667]
[1747538136190,2.59341,2478.7,2478.5,10.76007]
[1747538137291,2.59341,2478.7,2478.5,13.81807]
[1747538138696,0.80664,2478.6,2478.5,11.244]
[1747538138883,2.62604,2478.6,2478.5,12.05067]
[1747538139088,2.84418278,2478.6,2478.5,12.05067]
[1747538139695,0.80677,2478.2,2478.1,0.09218003]
[1747538139894,1.02492348,2478.2,2478.1,0.09218003]
[1747538140295,2.84430996,2478.2,2478.1,0.09218003]
[1747538140483,2.84430757,2478.2,2478.1,0.09218003]
[1747538140890,3.06246405,2478.2,2478.1,0.09218003]
[1747538141095,8.06246405,2478.2,2478.1,0.09218003]
[1747538141595,16.24046405,2478.2,2478.1,0.09218003]
[1747538142496,19.44181963,2478.2,2478.1,0.09218003]
[1747538142702,19.44181561,2478.2,2478.1,0.09218003]
[1747538142886,19.44181561,2478.2,2477.4,42.4696]
[1747538142887,2.01709,2478.1,2477.4,9.9926]
[1747538143092,4.01472,2477.8,2477.7,0.80693]
[1747538143294,0.80695,2477.7,2477.6,0.80696]
[1747538143493,2.60975,2477.7,2477.5,0.807]
[1747538143695,2.60975,2477.7,2477.6,0.80697]
[1747538143898,2.82790365,2477.7,2477.6,0.80697]
[1747538144092,1.8028,2477.7,2477.6,0.80697]
[1747538144703,3.2078,2477.8,2477.7,0.80693]
[1747538144898,3.4259384,2477.8,2477.7,0.80693]
[1747538145094,3.2078,2477.8,2477.7,0.80693]
[1747538145801,6.06250307,2477.9,2477.8,0.8069]
[1747538146092,7.08750094,2477.9,2477.8,0.8069]
[1747538146398,0.8069,2477.8,2477.7,2.72011]
[1747538146799,1.9106,2477.8,2477.7,2.72011]
[1747538147894,4.19800307,2478.0,2477.8,0.8069]
[1747538148097,1.9106,2477.9,2477.8,5.6297]
[1747538148297,2.93565998,2477.9,2477.8,4.8228]
[1747538148599,2.93565998,2477.9,2477.8,3.058]
[1747538149894,2.93565027,2477.9,2477.8,3.058]
[1747538150097,2.93565027,2477.9,2477.8,3.15018003]
[1747538151702,2.93564962,2477.9,2477.8,3.15018003]
[1747538153114,2.93564962,2477.9,2477.8,3.95708003]
[1747538153115,2.12877962,2477.9,2477.8,3.95708003]
[1747538153314,2.39800307,2478.0,2477.9,0.80687]
[1747538153613,2.39800307,2478.0,2477.9,10.90357]
[1747538154307,3.20484307,2478.0,2477.9,3.058]
[1747538154512,6.80684307,2478.0,2477.9,3.058]
[1747538156218,6.80684307,2478.0,2477.9,3.86487]
[1747538156517,4.40884,2478.0,2477.9,3.86487]
[1747538157219,4.40884,2478.0,2477.9,3.058]
[1747538158518,4.62720294,2478.0,2477.9,3.058]
[1747538159719,8.82036294,2478.0,2477.3,3.2078]
[1747538159911,3.2078,2477.8,2477.3,0.80705]
[1747538160118,4.01483,2477.5,2477.4,0.80703]
[1747538160422,0.21836294,2477.5,2477.4,0.80703]
[1747538160923,2.86866294,2477.5,2477.4,0.80703]
[1747538161125,2.06166294,2477.5,2477.4,3.86503]
[1747538161625,2.86866294,2477.5,2477.4,3.058]
[1747538162012,6.07646294,2477.5,2477.4,3.058]
[1747538162222,0.80703,2477.4,2477.3,3.058]
[1747538162423,2.81718838,2477.4,2477.3,3.86506]
[1747538162726,2.81718838,2477.4,2477.3,3.058]
[1747538163422,7.81718838,2477.4,2477.3,3.058]
[1747538163632,0.80718,2477.0,2476.8,1.7854]
[1747538163928,0.80714,2477.1,2477.0,0.80716]
[1747538164122,0.80718,2477.0,2476.9,0.80719]
[1747538164327,0.80716,2477.0,2476.9,0.80719]
[1747538164826,3.7827,2477.1,2476.8,6.6105]
[1747538165225,3.7827,2477.1,2477.0,0.80716]
[1747538165422,0.12863015,2477.4,2477.3,0.80706]
[1747538166025,0.12863015,2477.4,2477.3,5.80706]
[1747538166222,3.22181805,2477.6,2477.5,0.807]
[1747538166529,3.22181805,2477.6,2477.5,8.25863459]
[1747538166722,1.33720886,2477.6,2477.5,13.25863459]
[1747538166919,3.20135558,2477.7,2477.6,0.80697]
[1747538167225,3.20135558,2477.7,2477.6,23.21796497]
[1747538167425,3.42593757,2478.2,2478.1,0.8068]
[1747538167629,4.61499726,2478.3,2478.2,0.80677]
[1747538167831,4.61499726,2478.3,2478.2,18.96747]
[1747538168029,4.61499726,2478.3,2478.2,23.96747]
[1747538168225,4.61499726,2478.3,2478.2,2.61747]
[1747538168825,5.42174726,2478.3,2478.2,8.177]
[1747538169427,5.42174726,2478.3,2478.1,3.058]
[1747538169428,0.80677,2478.2,2478.1,3.058]
[1747538170228,0.8068,2478.1,2478.0,3.058]
[1747538170427,4.0146,2478.1,2478.0,3.058]
[1747538171328,0.80685,2478.0,2477.8,0.8069]
[1747538171530,2.60635,2478.0,2477.8,0.8069]
[1747538171726,2.60635,2478.0,2477.7,48.862]
[1747538171727,0.80687,2477.9,2477.7,0.80691]
[1747538171929,0.80692,2477.8,2477.6,0.80695]
[1747538172229,0.80693,2477.7,2477.5,3.86498]
[1747538172626,0.80697,2477.6,2477.5,3.058]
[1747538173332,2.4073141,2477.6,2477.5,3.058]
[1747538174134,0.80703,2477.4,2477.3,0.09218003]
[1747538175120,0.80703,2477.4,2477.3,3.15018003]
[1747538176129,4.3081741,2477.4,2477.3,3.15018003]
[1747538178334,4.3081741,2477.4,2477.3,1.86353578]
[1747538178534,4.3081741,2477.4,2477.3,1.95571581]
[1747538179132,4.3081741,2477.4,2477.3,0.09218003]
[1747538179634,4.5191287,2477.4,2477.3,0.09218003]
[1747538180038,8.7120987,2477.4,2476.8,40.681]
[1747538180237,0.80716,2477.0,2476.9,8.98319]
[1747538180436,0.32385,2477.1,2476.9,0.80719]
[1747538180737,1.8832,2477.0,2476.9,0.80719]
[1747538181232,1.8996,2477.3,2477.2,0.8071]
[1747538181437,3.7828,2477.3,2477.1,0.80711]
[1747538181632,3.7828,2477.3,2477.0,1.816]
[1747538181633,0.80713,2477.1,2477.0,2.62314]
[1747538181936,0.80712,2477.2,2477.1,0.80711]
[1747538182133,1.8832,2477.2,2477.1,0.80711]
[1747538183833,3.4890441,2477.4,2477.0,13.051]
[1747538184027,3.4890441,2477.4,2477.3,0.80706]
[1747538184731,3.4890441,2477.4,2477.3,0.89924003]
[1747538185250,3.4890441,2477.4,2477.3,3.95724003]
[1747538185539,1.8887,2477.4,2477.3,3.95724003]
[1747538186041,2.69573,2477.4,2477.3,3.15018003]
[1747538189446,2.69573,2477.4,2477.3,3.95724003]
[1747538189643,2.69573,2477.4,2477.3,3.15018003]
[1747538191733,2.90646557,2477.4,2477.3,3.15018003]
[1747538193645,6.11426557,2477.4,2477.3,3.15018003]
[1747538194148,2.01775,2477.2,2476.6,0.80729]
[1747538194345,0.80728,2476.7,2476.6,2.58199]
[1747538195047,0.80728,2476.7,2476.6,1.7747]
[1747538195249,0.80729,2476.6,2476.5,3.058]
[1747538195537,2.56099,2476.6,2476.5,3.058]
[1747538196339,2.56099,2476.6,2476.5,3.86532]
[1747538196542,1.7537,2476.6,2476.5,5.60152]
[1747538196846,0.80726,2476.7,2476.6,0.80727]
[1747538197046,0.80726,2476.7,2476.5,5.6015]
[1747538197244,0.80729,2476.6,2476.5,4.7942]
[1747538197645,0.80729,2476.7,2476.5,5.60152]
[1747538198244,2.56099,2476.7,2476.5,5.60152]
[1747538198649,1.196764,2476.8,2476.7,0.80726]
[1747538198847,2.003994,2476.8,2476.6,0.80727]
[1747538199147,1.196764,2476.8,2476.5,3.058]
[1747538199346,0.80726,2476.7,2476.6,8.175]
[1747538199548,4.01506,2476.7,2476.6,8.175]
[1747538199749,2.94522647,2476.7,2476.6,8.175]
[1747538200244,2.73436,2476.7,2476.6,8.175]
[1747538200446,2.94522341,2476.7,2476.6,8.175]
[1747538200747,2.9452564,2476.7,2476.6,8.175]
[1747538200948,0.80729,2476.6,2476.5,4.8781]
[1747538201449,0.80729,2476.6,2476.5,5.68542]
[1747538202345,0.80729,2476.6,2476.5,4.8781]
[1747538203451,2.56409,2476.6,2476.5,4.8781]
[1747538203652,4.36399,2476.6,2476.5,4.8781]
[1747538205047,4.36399,2476.6,2476.5,5.68542]
[1747538205351,1.6003441,2476.7,2476.6,0.80729]
[1747538206053,1.6003441,2476.7,2476.6,5.80729]
[1747538208048,1.6003441,2476.7,2476.6,22.15529]
[1747538208654,1.6003441,2476.7,2476.6,17.15529]
[1747538208851,1.80807098,2476.9,2476.6,16.348]
[1747538209151,1.00088098,2476.9,2476.8,0.80723]
[1747538210250,1.00088098,2476.9,2476.8,15.55393]
[1747538210758,2.59263,2477.1,2477.0,0.80716]
[1747538210956,2.59263,2477.1,2476.9,10.72907]
[1747538211148,2.59263,2477.1,2477.0,3.058]
[1747538212148,2.59263,2477.1,2477.0,3.86516]
[1747538212550,2.59263,2477.1,2477.0,3.058]
[1747538213143,2.59263,2477.1,2477.0,3.86516]
[1747538213347,2.59263,2477.1,2477.0,3.058]
[1747538213954,0.80726,2476.7,2476.6,0.09218003]
[1747538214257,4.22620688,2476.7,2476.6,0.09218003]
[1747538214753,6.11280688,2476.7,2476.6,0.09218003]
[1747538215258,8.50685671,2476.7,2476.6,0.09218003]
[1747538218663,8.50686074,2476.7,2476.6,0.09218003]
[1747538218854,8.63556634,2476.7,2476.6,0.09218003]
[1747538219051,0.80729,2476.6,2476.5,1.86312399]
[1747538219353,2.82154091,2476.6,2476.5,1.86312399]
[1747538220558,2.82160221,2476.6,2476.5,1.86312399]
[1747538221656,5.21572464,2476.6,2476.5,1.86312399]
[1747538223361,5.21582425,2476.6,2476.5,1.86312399]
[1747538225162,5.21582425,2476.6,2476.5,0.09218003]
[1747538226363,5.21582425,2476.6,2476.5,3.15018003]
[1747538227661,2.01448442,2476.6,2476.5,3.95750003]
[1747538227860,3.3365056,2476.7,2476.6,0.80729]
[1747538228051,3.54780867,2476.7,2476.6,2.59779]
[1747538228361,3.41910307,2476.7,2476.6,2.59779]
[1747538228862,3.2078,2476.7,2476.6,2.59779]
[1747538229063,4.01506,2476.7,2476.6,1.7905]
[1747538229259,0.80729,2476.6,2476.5,3.15018003]
[1747538229456,2.58489,2476.6,2476.5,3.15018003]
[1747538229658,2.79620921,2476.6,2476.5,3.15018003]
[1747538230160,10.96820921,2476.6,2476.5,3.15018003]
[1747538230671,10.96807639,2476.6,2476.5,3.15018003]
[1747538232067,0.80752,2475.9,2475.8,12.18933]
[1747538233167,0.80758,2475.7,2475.6,11.9243]
[1747538233357,0.80758,2475.7,2475.6,12.73192]
[1747538233666,0.80758,2475.7,2475.6,4.55792]
[1747538234461,0.80762,2475.6,2475.5,7.47250135]
[1747538234657,1.8395,2475.6,2475.5,3.058]
[1747538234863,1.8395,2475.6,2475.5,3.86565]
[1747538237069,1.19818653,2475.8,2475.7,0.80758]
[1747538237277,10.99556797,2475.9,2475.8,0.80755]
[1747538237468,11.20663711,2475.9,2475.8,0.80755]
[1747538237667,10.99556797,2475.9,2475.8,0.80755]
[1747538238178,11.20664732,2475.9,2475.8,3.86555]
[1747538238466,11.20668199,2475.9,2475.8,3.86555]
[1747538238670,12.78786797,2475.9,2475.8,3.86555]
[1747538239169,13.59538797,2475.9,2475.8,3.86555]
[1747538239371,13.59538797,2475.9,2475.8,3.15018003]
[1747538239571,12.99897746,2475.9,2475.8,3.95773003]
[1747538239775,12.78786797,2475.9,2475.8,3.95773003]
[1747538239972,14.51326791,2475.9,2475.8,3.95773003]
[1747538240779,15.32078791,2475.9,2475.8,3.95773003]
[1747538240971,1.72539994,2475.9,2475.8,3.95773003]
[1747538241167,1.72539994,2475.9,2475.8,8.95773003]
[1747538241678,1.72539994,2475.9,2475.8,10.09667729]
[1747538242578,2.39637307,2476.1,2476.0,0.80748]
[1747538242767,2.39637307,2476.1,2476.0,12.19028]
[1747538242972,1.33450797,2476.2,2476.1,0.80745]
[1747538243273,1.33450797,2476.2,2476.1,12.79875]
[1747538243473,1.33450797,2476.2,2476.1,11.53515]
[1747538243679,1.19865905,2476.3,2476.2,0.80742]
[1747538244172,1.19865905,2476.3,2476.2,5.80742]
[1747538244373,1.19865905,2476.3,2476.2,5.26656632]
[1747538244574,1.19865905,2476.3,2476.2,10.26656632]
[1747538244976,2.39637307,2476.6,2476.5,0.80732]
[1747538245177,2.39637307,2476.6,2476.5,12.18712]
[1747538245379,2.53337558,2476.8,2476.7,0.80725]